No. of Trans,Dept Family,Entity Name,Cert Date,Supplier Name,Reference,Gross Amt,Group/Department,Type of Expenditure - Subjective Codes,
1,DCMS,EH,24/11/2011,Conservation Solutions,0020028075,"1,565.94",National Collections Group - Property Maintenance Programme,OPERATIONAL COSTS - Annual Cyclical Works-Building,
2,DCMS,EH,24/11/2011,Conservation Solutions,0020028075,674.92,National Collections Group - Property Maintenance Programme,OPERATIONAL COSTS - Annual Cyclical Works-Building,
3,DCMS,EH,24/11/2011,Conservation Solutions,0020028075,"2,040.48",National Collections Group - Property Maintenance Programme,OPERATIONAL COSTS - Annual Cyclical Works-Building,
4,DCMS,EH,24/11/2011,Conservation Solutions,0020028075,24.60,National Collections Group - Property Maintenance Programme,OPERATIONAL COSTS - Annual Cyclical Works-Building,
5,DCMS,EH,24/11/2011,Conservation Solutions,0020028075,"2,251.20",National Collections Group - Property Maintenance Programme,OPERATIONAL COSTS - Annual Cyclical Works-Building,
6,DCMS,EH,24/11/2011,Conservation Solutions,0020028075,"1,945.70",National Collections Group - Property Maintenance Programme,OPERATIONAL COSTS - Annual Cyclical Works-Building,
7,DCMS,EH,24/11/2011,Conservation Solutions,0020028075,"1,346.74",National Collections Group - Property Maintenance Programme,OPERATIONAL COSTS - Annual Cyclical Works-Building,
8,DCMS,EH,24/11/2011,Conservation Solutions,0020028075,"5,366.80",National Collections Group - Property Maintenance Programme,OPERATIONAL COSTS - Annual Cyclical Works-Building,
9,DCMS,EH,24/11/2011,Conservation Solutions,0020028075,"2,334.16",National Collections Group - Property Maintenance Programme,OPERATIONAL COSTS - Annual Cyclical Works-Building,
10,DCMS,EH,24/11/2011,Conservation Solutions,0020028075,"1,477.72",National Collections Group - Property Maintenance Programme,OPERATIONAL COSTS - Annual Cyclical Works-Building,
11,DCMS,EH,24/11/2011,Conservation Solutions,0020028075,"2,046.34",National Collections Group - Property Maintenance Programme,OPERATIONAL COSTS - Annual Cyclical Works-Building,
12,DCMS,EH,24/11/2011,Conservation Solutions,0020028075,"1,295.20",National Collections Group - Property Maintenance Programme,OPERATIONAL COSTS - Annual Cyclical Works-Building,
13,DCMS,EH,24/11/2011,Conservation Solutions,0020028075,"2,523.36",National Collections Group - Property Maintenance Programme,OPERATIONAL COSTS - Annual Cyclical Works-Building,
14,DCMS,EH,24/11/2011,Conservation Solutions,0020028075,655.74,National Collections Group - Property Maintenance Programme,OPERATIONAL COSTS - Annual Cyclical Works-Building,
15,DCMS,EH,24/11/2011,Conservation Solutions,0020028075,24.30,National Collections Group - Property Maintenance Programme,OPERATIONAL COSTS - Annual Cyclical Works-Building,
16,DCMS,EH,24/11/2011,Conservation Solutions,0020028075,30.83,National Collections Group - Property Maintenance Programme,OPERATIONAL COSTS - Annual Cyclical Works-Building,
17,DCMS,EH,10/11/2011,R H Partnership Architects Ltd,0020026230,"21,720.00",National Collections Group - Property Investment Programme,NET WIP MOVEMENT - WIP Refurb & Fitting Out,
18,DCMS,EH,10/11/2011,R H Partnership Architects Ltd,0020026230,170.00,National Collections Group - Property Investment Programme,NET WIP MOVEMENT - WIP Professional Works Advice,
19,DCMS,EH,10/11/2011,R H Partnership Architects Ltd,0020026230,753.60,National Collections Group - Property Investment Programme,NET WIP MOVEMENT - WIP Professional Works Advice,
20,DCMS,EH,10/11/2011,R H Partnership Architects Ltd,0020026230,"3,000.00",National Collections Group - Property Investment Programme,NET WIP MOVEMENT - WIP Professional Works Advice,
21,DCMS,EH,24/11/2011,Carisbrooke Castle Museum Trust,0020028382,"25,558.00",National Collections Group - Historic Properties Department,SALES & PROMOTIONS - Income Sharing Agreement,
22,DCMS,EH,07/11/2011,W H Smith and R Ensor SAP Scheme,0020026402,"35,516.40",Resources Group - Operational Estates,RUNNING COSTS - Rent - Operating Leases,
23,DCMS,EH,07/11/2011,W H Smith and R Ensor SAP Scheme,0020026402,"6,091.15",Resources Group - Operational Estates,RUNNING COSTS - Building Service Charges,
24,DCMS,EH,16/11/2011,E Bowman and Sons Ltd,0020027880,"85,002.00",Heritage Protection & Planning Group - National Planning Department,OPERATIONAL COSTS - Works for Heritage Buildings,
25,DCMS,EH,09/11/2011,Past Pleasures Ltd,0020024272,"57,589.20",National Collections Group - Historic Properties Department,SALES & PROMOTIONS - Exhibits/Displays,
26,DCMS,EH,17/11/2011,Gillards Worldwide,0020027784,"55,333.29",National Collections Group - Historic Properties Department,OPERATIONAL COSTS - Storage & warehousing,
27,DCMS,EH,11/11/2011,Historic Property Restoration Ltd,0020027147,"8,416.79",National Collections Group - Property Maintenance Programme,OPERATIONAL COSTS - Planned Maintenance,
28,DCMS,EH,11/11/2011,Historic Property Restoration Ltd,0020027147,"1,761.49",National Collections Group - Property Maintenance Programme,OPERATIONAL COSTS - Leased Accomodation Maint,
29,DCMS,EH,11/11/2011,Historic Property Restoration Ltd,0020027147,558.95,National Collections Group - Property Maintenance Programme,OPERATIONAL COSTS - Responsive Repairs M & E,
30,DCMS,EH,11/11/2011,Historic Property Restoration Ltd,0020027147,"6,927.05",National Collections Group - Property Maintenance Programme,OPERATIONAL COSTS - Responsive Maint Building,
31,DCMS,EH,11/11/2011,Historic Property Restoration Ltd,0020027147,790.64,National Collections Group - Property Maintenance Programme,OPERATIONAL COSTS - Responsive Maint Building,
32,DCMS,EH,11/11/2011,Historic Property Restoration Ltd,0020027147,"12,157.82",National Collections Group - Property Maintenance Programme,OPERATIONAL COSTS - Responsive Repairs M & E,
33,DCMS,EH,11/11/2011,Historic Property Restoration Ltd,0020027147,663.71,National Collections Group - Property Maintenance Programme,OPERATIONAL COSTS - Leased Accomodation Maint,
34,DCMS,EH,11/11/2011,Historic Property Restoration Ltd,0020027147,"15,083.76",National Collections Group - Property Maintenance Programme,OPERATIONAL COSTS - Planned Maintenance,
35,DCMS,EH,11/11/2011,Historic Property Restoration Ltd,0020027150,"21,265.01",National Collections Group - Property Maintenance Programme,OPERATIONAL COSTS - Annual Cyclical Work M & E,
36,DCMS,EH,11/11/2011,Historic Property Restoration Ltd,0020027150,379.57,National Collections Group - Property Maintenance Programme,OPERATIONAL COSTS - Annual Cyclical Work M & E,
37,DCMS,EH,11/11/2011,Historic Property Restoration Ltd,0020027150,"4,900.58",National Collections Group - Property Maintenance Programme,OPERATIONAL COSTS - Leased Accomodation Maint,
38,DCMS,EH,11/11/2011,Historic Property Restoration Ltd,0020027150,"5,248.22",National Collections Group - Property Maintenance Programme,OPERATIONAL COSTS - Annual Cyclical Works-Building,
39,DCMS,EH,11/11/2011,Historic Property Restoration Ltd,0020027150,"15,318.07",National Collections Group - Property Maintenance Programme,OPERATIONAL COSTS - Annual Cyclical Works-Building,
40,DCMS,EH,30/11/2011,Historic Property Restoration Ltd,0020029838,"20,222.35",National Collections Group - Property Maintenance Programme,OPERATIONAL COSTS - Annual Cyclical Works-Building,
41,DCMS,EH,30/11/2011,Historic Property Restoration Ltd,0020029838,"5,904.06",National Collections Group - Property Maintenance Programme,OPERATIONAL COSTS - Annual Cyclical Works-Building,
42,DCMS,EH,30/11/2011,Historic Property Restoration Ltd,0020029838,"23,308.82",National Collections Group - Property Maintenance Programme,OPERATIONAL COSTS - Annual Cyclical Work M & E,
43,DCMS,EH,30/11/2011,Historic Property Restoration Ltd,0020029838,"1,653.77",National Collections Group - Property Maintenance Programme,OPERATIONAL COSTS - Annual Cyclical Work M & E,
44,DCMS,EH,30/11/2011,Historic Property Restoration Ltd,0020029838,"2,320.42",National Collections Group - Property Maintenance Programme,OPERATIONAL COSTS - Annual Cyclical Work M & E,
45,DCMS,EH,24/11/2011,Central Office of Information,0020024365,"31,034.39",National Collections Group - Marketing Department,SALES & PROMOTIONS - Online Promotion,
46,DCMS,EH,24/11/2011,Central Office of Information,0020024365,18.92,National Collections Group - Marketing Department,SALES & PROMOTIONS - Online Promotion,
47,DCMS,EH,29/11/2011,Central Office of Information,0020028618,24.82,National Collections Group - Marketing Department,SALES & PROMOTIONS - Advertising,
48,DCMS,EH,29/11/2011,Central Office of Information,0020028618,"30,538.32",National Collections Group - Marketing Department,SALES & PROMOTIONS - Advertising,
49,DCMS,EH,21/11/2011,Gray's Inn Square Chambers Ltd,0020026916,"27,000.00",National Collections Group - Property Investment Programme,OPERATIONAL COSTS - Fees for Professional Advice,
50,DCMS,EH,02/11/2011,Enterprise Rent A Car UK Ltd,0020027126,"31,461.43",Resources Group - Corporate,RUNNING COSTS - Car Hire,
51,DCMS,EH,30/11/2011,Sanderson RBS Ltd,0020029691,"40,221.30",Resources Group - IMT Dept,RUNNING COSTS - Software Maintenance,
52,DCMS,EH,21/11/2011,Evolve Design London Ltd,0020027669,"40,800.00",Heritage Protection & Planning Group - National Planning Department,SALES & PROMOTIONS - Non stock publications,
53,DCMS,EH,21/11/2011,Evolve Design London Ltd,0020027669,"7,800.00",Heritage Protection & Planning Group - National Planning Department,SALES & PROMOTIONS - Non stock publications,
54,DCMS,EH,01/11/2011,Seven,0020023711,"279,367.19",National Collections Group - Marketing Department,SALES & PROMOTIONS - Promotional Material,
55,DCMS,EH,09/11/2011,Seven,0020026982,"197,128.80",National Collections Group - Marketing Department,SALES & PROMOTIONS - Promotional Material,
56,DCMS,EH,17/11/2011,Coulson Group Ltd,0020027422,"85,256.36",National Collections Group - Property Investment Programme,NET WIP MOVEMENT - WIP Operational Building Works,
57,DCMS,EH,25/11/2011,Fairhurst Ward Abbotts Ltd,0020029537,"33,075.98",National Collections Group - Property Maintenance Programme,OPERATIONAL COSTS - Planned Maintenance,
58,DCMS,EH,15/11/2011,Ruggles and Jeffery Ltd,0020027603,"35,587.07",National Collections Group - Property Maintenance Programme,OPERATIONAL COSTS - Leased Accomodation Maint,
59,DCMS,EH,01/11/2011,Capita Secure Information Systems Ltd,0020026719,"78,344.27",Resources Group - IMT Dept,OTHER EXPENDITURE - Computer Equipment <10k,
60,DCMS,EH,25/11/2011,Capita Secure Information Systems Ltd,0020028956,"329,554.80",Resources Group - IMT Dept,RUNNING COSTS - ITFM,
61,DCMS,EH,11/11/2011,Wyndeham Web Ltd,0020025384,"6,932.50",National Collections Group - Marketing Department,SALES & PROMOTIONS - Promotional Material,
62,DCMS,EH,11/11/2011,Wyndeham Web Ltd,0020025384,"27,342.97",National Collections Group - Marketing Department,SALES & PROMOTIONS - Promotional Material,
63,DCMS,EH,21/11/2011,Summers Place Auctions Ltd,0020029191,"143,200.00",National Collections Group - Curatorial Department,NET FIXED ASSET EXPENDITURE - Artefacts & Archives > 10k,
64,DCMS,EH,25/11/2011,Dudley Metropolitan Borough Council,0090512297,"43,136.00",Heritage Protection & Planning Group - National Planning Department,GRANTS PAYABLE - AREA,
65,DCMS,EH,14/11/2011,The Architectural Heritage Fund,0090512258,"54,963.00",Heritage Protection & Planning Group - National Planning Department,GRANTS PAYABLE - OTHER GRANTS,
66,DCMS,EH,08/11/2011,Lincolnshire County Council,0081001709,"29,492.00",Heritage Protection & Planning Group - Heritage Protection Department,ENABLING PROGRAMMES - Historic Environ Prog Grants,
67,DCMS,EH,08/11/2011,Museum of London Arch Services,0081001707,"25,000.00",Heritage Protection & Planning Group - Heritage Protection Department,ENABLING PROGRAMMES - Hist Environ Prog Publ Grants,
68,DCMS,EH,23/11/2011,The Friends of Friendless Churches,0090512281,"25,043.00",Heritage Protection & Planning Group - National Planning Department,GRANTS PAYABLE - HISTORIC BUILDINGS,
69,DCMS,EH,16/11/2011,London Borough of Camden,0090512262,"91,609.00",Heritage Protection & Planning Group - National Planning Department,GRANTS PAYABLE - HISTORIC BUILDINGS,
70,DCMS,EH,14/11/2011,Historic Chapels Trust,0090512259,"25,798.00",Heritage Protection & Planning Group - National Planning Department,GRANTS PAYABLE - OTHER GRANTS,
71,DCMS,EH,14/11/2011,Ossett and Gawthorpe PCC,0090512251,"37,350.00",Heritage Protection & Planning Group - National Planning Department,GRANTS PAYABLE - PLACES OF WORSHIP,
72,DCMS,EH,02/11/2011,Norwich Historic Church Trust Ltd,0090512212,"80,455.00",Heritage Protection & Planning Group - National Planning Department,GRANTS PAYABLE - HISTORIC BUILDINGS,
73,DCMS,EH,25/11/2011,Birmingham City Council,0090512305,"71,853.00",Heritage Protection & Planning Group - National Planning Department,GRANTS PAYABLE - HISTORIC BUILDINGS,
74,DCMS,EH,09/11/2011,Haringey Council,0090512228,"51,531.00",Heritage Protection & Planning Group - National Planning Department,GRANTS PAYABLE - AREA,
75,DCMS,EH,09/11/2011,Haringey Council,0090512229,"45,235.00",Heritage Protection & Planning Group - National Planning Department,GRANTS PAYABLE - AREA,
76,DCMS,EH,21/11/2011,Illogan & Trevenson Churches,0090512268,"76,950.00",Heritage Protection & Planning Group - National Planning Department,GRANTS PAYABLE - PLACES OF WORSHIP,
77,DCMS,EH,09/11/2011,City of London Corporation,0090512227,"43,408.00",Heritage Protection & Planning Group - National Planning Department,GRANTS PAYABLE - HISTORIC BUILDINGS,
78,DCMS,EH,09/11/2011,City of London Corporation,0090512227,"58,320.00",Heritage Protection & Planning Group - National Planning Department,GRANTS PAYABLE - HISTORIC BUILDINGS,
79,DCMS,EH,30/11/2011,Hardham Priory,0090512327,"45,000.00",Heritage Protection & Planning Group - National Planning Department,GRANTS PAYABLE - HISTORIC BUILDINGS,
80,DCMS,EH,28/11/2011,Northumberland County Council,0090512323,"45,014.00",Heritage Protection & Planning Group - National Planning Department,GRANTS PAYABLE - AREA
81,DCMS,EH,07/11/2011,St Helenas PCC,0090512214,"50,500.00",Heritage Protection & Planning Group - National Planning Department,GRANTS PAYABLE - PLACES OF WORSHIP
82,DCMS,EH,09/11/2011,Holy Trinity & St Mary's PCC,0090512238,579.00,Heritage Protection & Planning Group - National Planning Department,GRANTS PAYABLE - PLACES OF WORSHIP
83,DCMS,EH,09/11/2011,Holy Trinity & St Mary's PCC,0090512238,"30,000.00",Heritage Protection & Planning Group - National Planning Department,GRANTS PAYABLE - PLACES OF WORSHIP
84,DCMS,EH,28/11/2011,Braxted Park 1994 Settlement,0090512319,"58,000.00",Heritage Protection & Planning Group - National Planning Department,GRANTS PAYABLE - HISTORIC BUILDINGS
85,DCMS,EH,09/11/2011,Betchworth Castle,0090512225,"29,540.00",Heritage Protection & Planning Group - National Planning Department,GRANTS PAYABLE - HISTORIC BUILDINGS
86,DCMS,EH,09/11/2011,Poltimore House Trust,0090512233,"32,415.00",Heritage Protection & Planning Group - National Planning Department,GRANTS PAYABLE - HISTORIC BUILDINGS
87,DCMS,EH,09/11/2011,Thornhill PCC,0090512234,"31,800.00",Heritage Protection & Planning Group - National Planning Department,GRANTS PAYABLE - PLACES OF WORSHIP
88,DCMS,EH,23/11/2011,Wattisfield PCC,0090512283,"35,550.00",Heritage Protection & Planning Group - National Planning Department,GRANTS PAYABLE - PLACES OF WORSHIP
89,DCMS,EH,28/11/2011,Lowther PCC,0090512315,"19,500.00",Heritage Protection & Planning Group - National Planning Department,GRANTS PAYABLE - PLACES OF WORSHIP
90,DCMS,EH,28/11/2011,Lowther PCC,0090512315,"30,450.00",Heritage Protection & Planning Group - National Planning Department,GRANTS PAYABLE - PLACES OF WORSHIP
91,DCMS,EH,09/11/2011,Ruardean PCC,0090512232,"27,000.00",Heritage Protection & Planning Group - National Planning Department,GRANTS PAYABLE - PLACES OF WORSHIP
92,DCMS,EH,09/11/2011,Sharlston Dovecote,0090512236,"24,063.00",Heritage Protection & Planning Group - National Planning Department,GRANTS PAYABLE - HISTORIC BUILDINGS
93,DCMS,EH,09/11/2011,Sharlston Dovecote,0090512236,"2,181.00",Heritage Protection & Planning Group - National Planning Department,GRANTS PAYABLE - HISTORIC BUILDINGS
94,DCMS,EH,16/11/2011,St John the Evangelist PCC,0090512264,"25,000.00",Heritage Protection & Planning Group - National Planning Department,GRANTS PAYABLE - PLACES OF WORSHIP
95,DCMS,EH,14/11/2011,RC Parish of St Joseph Carterton,0090512248,"59,500.00",Heritage Protection & Planning Group - National Planning Department,GRANTS PAYABLE - PLACES OF WORSHIP
